Cogmind - Beta 10 @@@ ROGUE MODE // 2020.09.18 @ 22:39:51 Player: DragoX Result: Destroyed by as-94195 with Assembled Blade Performance ------------- Evolutions (0) 0 Regions Visited (2) 400 Robots Destroyed (25) 125 Value Destroyed (389) 389 Prototype IDs (0) 0 Alien Tech Used (0) 0 Bonus (0) 0 TOTAL SCORE: 914 Bonus ------- None Cogmind --------- Core Integrity 0/250 Matter 248/300 Energy 96/100 System Corruption 0% Temperature Cool (0) Movement Core (450) Ox8 Location -10/Mines Parts ------- > --- POWER (1) -------- (None) > --- PROPULSION (2) --- (None) > --- UTILITY (2) ------ Medium Storage Unit Large Storage Unit > --- WEAPON (2) ------- Mining Claw > --- INVENTORY (14) --- Light Ion Engine Small Storage Unit Small Storage Unit Medium Storage Unit Large Storage Unit Targeting Computer Utility Shielding EM Pulse Gun Small Laser Datajack Peak State ------------ > --- POWER ------------ Ion Engine > --- PROPULSION ------- Aluminum Leg Aluminum Leg > --- UTILITY ---------- Small Storage Unit Medium Storage Unit > --- WEAPON ----------- EM Pulse Gun Assault Rifle > --- INVENTORY -------- Ion Engine Compact Wheel Compact Wheel Small Storage Unit Medium Storage Unit Utility Shielding EM Pulse Gun EM Pulse Gun Small Laser Mining Claw [Rating: 8] Favorites ----------- Power Ion Engine Engine Ion Engine Propulsion Aluminum Leg Leg Aluminum Leg Wheel Compact Wheel Utility Small Storage Unit Storage Small Storage Unit Weapon Assault Rifle Energy Gun EM Pulse Gun Ballistic Gun Assault Rifle Ballistic Cannon Light Cannon Slashing Weapon Mining Claw Build | -11 -10 -10 ------- Run | Scr Mat Min Slots Evolved . | . . . Power . | . . . Propulsion . | . . . Utility . | . . . Weapon . | . . . Parts Attached 16 | 6 10 . Power 2 | 1 1 . Engine 2 | 1 1 . Core . | . . . Reactor . | . . . Propulsion 4 | 2 2 . Treads . | . . . Leg 2 | 2 . . Wheel 2 | . 2 . Hover . | . . . Flight . | . . . Utility 5 | 1 4 . Device . | . . . Storage 5 | 1 4 . Processor . | . . . Hackware . | . . . Protection . | . . . Artifact . | . . . Weapon 5 | 2 3 . Energy Gun 2 | 1 1 . Energy Cannon . | . . . Ballistic Gun 1 | 1 . . Ballistic Cannon 1 | . 1 . Launcher . | . . . Special Weapon . | . . . Impact Weapon . | . . . Slashing Weapon 1 | . 1 . Piercing Weapon . | . . . Special Melee Weapon . | . . . Unidentified Prototypes . | . . . Parts Lost 8 | . 4 4 Power 2 | . 1 1 Propulsion 3 | . 1 2 Utility . | . . . Weapon 3 | . 2 1 Highest Loss Streak 4 | . 2 4 Average Slot Usage (%) 84 | . 82 98 Engine 10 | . 10 14 Leg 16 | . 17 . Wheel 2 | . . 26 Storage 27 | . 27 28 Energy Gun 7 | . 7 . Ballistic Gun 8 | . 9 . Ballistic Cannon 4 | . 4 14 Slashing Weapon 5 | . 4 14 Naked Turns . | . . . Heaviest Build 34 | 13 34 34 Greatest Support 32 | 20 32 32 Greatest Overweight (x) 3 | 1 3 1 Average Overweight (x) . | . 2 1 Largest Inventory Capacity 14 | 6 14 14 Average Capacity 6 | 5 13 14 Most Carried 13 | 4 13 10 Average Carried 3 | 3 10 10 Final Capacity 14 | 6 14 14 Final Carried 10 | 4 10 10 Class Distribution -------------------- 100% | Mutant Dominant Class ---------------- Mutant | -10/Materials Mutant | -10/Mines Resources | -11 -10 -10 ----------- Run | Scr Mat Min Matter Collected 532 | 245 252 35 Remotely . | . . . Salvage Created 802 | 80 716 6 Parts 52 | 2 50 . Haulers Intercepted 2 | . 2 . Recyclers Shooed . | . . . Parts Field Recycled . | . . . Retrieved Matter . | . . . Parts Self-Destructed . | . . . Prevented . | . . . Kills | -11 -10 -10 ------- Run | Scr Mat Min Combat Hostiles Destroyed 14 | . 13 1 Melee 1 | . . 1 Guns 10 | . 10 . Cannons 3 | . 3 . Classes Destroyed 7 | 1 5 1 Worker 4 | . 4 . Hauler 2 | . 2 . Recycler 3 | 1 2 . Watcher 2 | . 2 . Swarmer 6 | . 6 . Grunt 7 | . 7 . Assembled 1 | . . 1 Best Kill Streak 5 | 1 5 1 Combat Bots Only 3 | . 3 1 Max Kills in Single Turn 1 | 1 1 1 Gunslinging . | . . . Exploded . | . . . Melee 1 | . . 1 Uniques/NPCs Destroyed . | . . . Combat | -11 -10 -10 -------- Run | Scr Mat Min Damage Taken 1073 | . 639 434 Core 264 | . 102 162 Absorbed by Shields . | . . . Core Remaining (%) 100 | 100 . . Volleys Fired 81 | 2 73 6 Largest 2 | 2 2 1 Hottest 60 | 60 60 35 Shots Fired 127 | 4 117 6 Gun 106 | 4 102 . Cannon 21 | . 15 6 Launcher . | . . . Special . | . . . Kinetic 81 | 2 73 6 Thermal . | . . . Explosive . | . . . Electromagnetic 46 | 2 44 . Robot Hit Streak 9 | 3 9 2 Robot Miss Streak 10 | . 6 10 Penetration Max . | . . . Secondary Targets 2 | . 2 . Max Gunslinging Chain 1 | . 1 . Shots Hit Robots 66 | 3 59 4 Core Hits 33 | 2 29 2 Critical Hits 3 | . 3 . Critical Kills 2 | . 2 . Critical Parts Destroyed 1 | . 1 . Melee Attacks 3 | . 1 2 Impact . | . . . Slashing 3 | . 1 2 Piercing . | . . . Sneak Attacks 1 | . 1 . Combat Hostiles . | . . . Follow-up Attacks . | . . . Damage Inflicted 1180 | 36 1058 86 Guns 866 | 36 830 . Cannons 134 | . 103 31 Explosions 56 | . 56 . Melee 124 | . 69 55 Ramming . | . . . Kinetic 563 | 12 520 31 Thermal 56 | . 56 . Explosive . | . . . Electromagnetic 437 | 24 413 . Impact . | . . . Slashing 124 | . 69 55 Piercing . | . . . Highest Corruption . | . . . Average Corruption . | . . . Corruption Purged . | . . . Overload Shots . | . . . Overflow Damage 4 | . . 4 Projectiles . | . . . Explosions . | . . . Melee 4 | . . 4 Knockbacks 4 | . 2 2 Impact . | . . . Kinetic 4 | . 2 2 Secondary . | . . . Self-Inflicted Damage 27 | . 27 . Shots 1 | . 1 . Rammed . | . . . Targets Rammed . | . . . Kicked . | . . . Crushed . | . . . Highest Temperature 79 | . 79 28 Average Temperature 29 | . 30 17 Received Heat Transfer 281 | . 201 80 Siege Activations . | . . . Robots Corrupted . | . . . Combat Hostiles . | . . . Parts Fried . | . . . Impact Corruptions . | . . . Robots Melted . | . . . Combat Hostiles . | . . . Parts Melted . | . . . Heat Transferred 50 | . 50 . Parts Sabotaged . | . . . Parts Stolen . | . . . Parts Stripped . | . . . Power Chain Reactions 1 | . 1 . Missiles Intercepted . | . . . Alert | -11 -10 -10 ------- Run | Scr Mat Min Peak Influence 275 | 5 275 72 Initial 72 | . . 72 Average 14 | . 152 70 Maximum Alert Level 1 | . 1 . Low Security (%) 96 | 100 65 100 Level 1 3 | . 34 . Level 2 . | . . . Level 3 . | . . . Level 4 . | . . . Level 5 . | . . . High Security . | . . . Max Security . | . . . Squads Dispatched 2 | . 2 . Investigation 1 | . 1 . Extermination . | . . . Reinforcement 1 | . 1 . Assault . | . . . Garrison . | . . . Intercept . | . . . Construction Impeded . | . . . Haulers Reinforced . | . . . Stealth | -11 -10 -10 --------- Run | Scr Mat Min Distress Signals 1 | . 1 . Communications Jammed . | . . . Distress Signals . | . . . Times Spotted 41 | . 30 11 Peak Tracking Total 11 | . 4 11 Tactical Retreats . | . . . Traps | -11 -10 -10 ------- Run | Scr Mat Min Traps Triggered 1 | . 1 . Indirectly . | . . . Trap Hack Attempts . | . . . Triggered . | . . . Disarmed . | . . . Reprogrammed . | . . . Reused . | . . . Traps Extracted . | . . . Installed . | . . . Triggered . | . . . Machines | -11 -10 -10 ---------- Run | Scr Mat Min Machines Disabled 3 | . 3 . Max in Single Turn 1 | . 1 . Machines Sabotaged . | . . . Garrisons Compromised . | . . . Overloaded Fab Kills . | . . . Fab Network Shutdowns . | . . . Hacking | -11 -10 -10 --------- Run | Scr Mat Min Machines Accessed 4 | . 4 . Terminals 3 | . 3 . Fabricators . | . . . Repair Stations . | . . . Recycling Units 1 | . 1 . Scanalyzers . | . . . Garrison Access . | . . . Total Hacks 9 | . 9 . Successful 3 | . 3 . Failed 6 | . 6 . Catastrophic 1 | . 1 . Database Lockouts . | . . . Manual 9 | . 9 . Terminals 8 | . 8 . Fabricators . | . . . Repair Stations . | . . . Recycling Units 1 | . 1 . Scanalyzers . | . . . Garrison Access . | . . . Terminal Hacks . | . . . Fabricator Hacks . | . . . Repair Station Hacks . | . . . Recycling Unit Hacks . | . . . Scanalyzer . | . . . Garrison Access Hacks . | . . . Unauthorized Hacks 3 | . 3 . Terminals 2 | . 2 . Botnet 2 | . 2 . Fabricators . | . . . Repair Stations . | . . . Recycling Units 1 | . 1 . Tunnel 1 | . 1 . Scanalyzers . | . . . Garrison Access . | . . . Data Cores Recovered . | . . . Used . | . . . Hacking Detections 3 | . 3 . Full Trace Events 2 | . 2 . Feedback Events . | . . . Feedback Blocked . | . . . Robot Schematics Acquired . | . . . Robots Built . | . . . Matter . | . . . Time . | . . . Total Robot Build Rating . | . . . Part Schematics Acquired . | . . . Parts Built . | . . . Matter . | . . . Time . | . . . Total Part Build Rating . | . . . Parts Repaired . | . . . Time . | . . . Parts Recycled . | . . . Recycled Matter . | . . . Retrieved Matter . | . . . Retrieved Components . | . . . Parts Scanalyzed . | . . . Part Schematics Acquired . | . . . Parts Damaged . | . . . Bothacking | -11 -10 -10 ------------ Run | Scr Mat Min Used RIF Installer . | . . . Robots Hacked . | . . . Non-combat . | . . . Combat . | . . . Robot Hacks Applied . | . . . Relay Couplers Released . | . . . Robots Rewired . | . . . Allies Hacked . | . . . Hacks Repelled . | . . . Allies | -11 -10 -10 -------- Run | Scr Mat Min Total Allies . | . . . Largest Group . | . . . Highest-Rated Group . | . . . Highest-Rated Ally . | . . . Total Orders . | . . . Ally Attacks . | . . . Total Damage . | . . . Kills . | . . . Allies Corrupted . | . . . Allies Melted . | . . . Intel | -11 -10 -10 ------- Run | Scr Mat Min Robot Analysis Total . | . . . Derelict Logs Recovered . | . . . Drone Launches . | . . . Drone Recoveries . | . . . Exploration | -11 -10 -10 ------------- Run | Scr Mat Min Turns Passed 11174 | 10038 1046 90 Spaces Moved 1261 | 729 464 68 Core 18 | 18 . . Treads . | . . . Legs 1153 | 711 442 . Wheels 90 | . 22 68 Hover . | . . . Flight . | . . . Fastest Speed 50 | 50 110 110 Average Speed 139 | 118 178 110 Slowest Speed 210 | 150 210 110 Overloaded Moves . | . . . Propulsion Burnouts . | . . . Robots Hopped . | . . . Cave-ins Triggered . | . . . Exploration Rate (%) 67 | 107 64 31 Regions Visited 2 Branch Regions 1 Pre-discovered Areas 1 | . 1 . Known Exits Taken . | . . . Unknown Exits Taken 2 | 1 1 . Scrap Searched 1 | . . 1 Spaces Dug . | . . . Terrain Destroyed 7 | . 7 . Melee . | . . . Projectile . | . . . AOE 7 | . 7 . Terrain Rammed . | . . . Walls Destroyed . | . . . Machines Disabled . | . . . Actions | -11 -10 -10 --------- Run | Scr Mat Min Total 10539 | 9899 564 76 Wait 9155 | 9153 2 . Move 1259 | 728 463 68 Hop . | . . . Pick Up 23 | 10 13 . Fast Attach . | . . . Attach 13 | 6 7 . Detach . | . . . Swap 3 | . 3 . Drop 2 | . 2 . Fire 81 | 2 73 6 Melee 3 | . 1 2 Ram . | . . . Kick . | . . . Crush . | . . . Escape Stasis . | . . . Rewire . | . . . Trap . | . . . Miscellaneous . | . . . Route ------- -11/Scrapyard -10/Materials (discovered 3 exits: [*Mat] / [*Min x2]) -10/Mines History --------- Turn | Location | Event 10 | -11/Scrapyard | Discovered new exit (range 15) 10039 | -11/Scrapyard | Entered Materials 10040 | -10/Materials | Build established: Mutant 10160 | -10/Materials | Discovered new exit (range 13) 10294 | -10/Materials | Discovered new exit (range 7) 10831 | -10/Materials | Discovered new exit (range 16) 11085 | -10/Materials | Entered Mines 11104 | -10/Mines | Met a Derelict bent on vengeance 11152 | -10/Mines | Assembled infested the area 11166 | -10/Mines | Core integrity fell below 50% 11174 | -10/Mines | Core integrity fell below 20% 11175 | -10/Mines | Destroyed by as-94195 with Assembled Blade Last Messages --------------- 11104_ T-07 Excavator is excavating. 11105_ Searching scrap... 11105_ Found 20 Matter. 11105_ Found 15 Matter. 11106_ Acquired 15 matter. 11106_ Acquired 20 matter. 11116_ 71-NXQ(g): "TASTE MY VENGEANCE!" 11119_ 71-NXQ(g): "UNAWARE KILLED MY BEST FRIEND! VENGEANCE!" 11152_ ALERT: Infestation in the mines, dispatching Demolisher response squad. 11158_ T-07 Excavator destroyed. 11162_ Core Extractor disabled. 11167_ Com. Wheel destroyed. 11168_ as-94195 knocked back. 11170_ as-75904 knocked back. 11170_ Lgt. Cannon destroyed. 11172_ Destroyed Asb. Hover Unit. 11172_ Com. Wheel destroyed. 11173_ Ion Engine destroyed. 11175_ as-75904 destroyed. Map ----- +----------------------------------------------------+ | | | | | | | | | | | | | ?????????????????????????????????????????????????? | | ?????????????????????????????????????????????????? | | ???????????????????????????????????????????????### | | ?????????????????????????????????????????????## # | | ?????????????????????????????????????????????# | | ???????????????????????????????####????####?## | | ??????????????????????????????## #???## ### | | ?????????????????????????????## #??## | | ????????????????????????????## #?## | | ????????????????????????????# ### ##### "" | | ???????????????????????????## g ##???# "" | | ??????????????????????????## #???## "" | | ?????????????????????????## #??## | | ?????????????????????##### ##?## | | ????????????????????## #??# | | ??????????????????### """ ##?# | | ?????????????????## """ ###??# | | ????????????????## " ##????## # | | ???????????????## ####??????# #### | | ???????????????# a@ ##?????????# ???? | | ???????????????# a aaa% #####??????????# | | ???????????????## a a a ##??????????????# ??# | | ????????????????## a #??????????????? ??# | | ?????????????????# a = #?????????????? ???? | | ?????????????????# !%* #???????????? ????? | | ???????????????? ##| #???????????? ???#? | | ???????????????## #### ##??????????????????# | | ????????????????# ????###??????????????????## | | ????????????????# ???????????????????????### | | ????????????????## ?????????????????# | | ?????????????????### ??????????????????# | | ???????????????????## ??????????????????# ## | | ????????????????????? ??????????????????## ???? | | ????????????????????? ???????????????????????????? | | ?????????????????????????????????????????????????? | | ?????????????????????????????????????????????????? | | ?????????????????????????????????????????????????? | | ?????????????????????????????????????????????????? | | ?????????????????????????????????????????????????? | | ?????????????????????????????????????????????????? | | ?????????????????????????????????????????????????? | | ?????????????????????????????????????????????????? | | ?????????????????????????????????????????????????? | | ?????????????????????????????????????????????????? | +----------------------------------------------------+ Best States ------------- Heat Dissipation 25 Energy Generation 10 Energy Capacity 250 Matter Stores 300 Matter Capacity 300 Sight Range 16 Terrain Scan Density 10 Evasion (%) 50 Item Schematics ----------------- None Robot Schematics ------------------ None Fabricated ------------ Nothing Alien Tech Used ----------------- None Achievements -------------- None Challenges ------------ None Game ------ Seed NodePrecisionAutohacker Manual? 0 Play Time 00:23:04 Cumulative 10.6 hours Start 2020.09.18 @ 22:17:34 End 2020.09.18 @ 22:39:51 Sessions 1 Manual Loads 0 Difficulty Rogue Special Mode None Game No. 10 Rogue 10 Adventurer 0 Explorer 0 Win Type - Total 0 Types 0/0/0/0/0/0/0/0/0 Lore% 16 Gallery% 17 Achievement% 14 Wizard Run 0 Options --------- ASCII 0 Keyboard 0 Movement Mouse Keybinds 0 Fullscreen 1 Font 18/X11Bold Map View 76x50 Tactical HUD 1 Map Filters NONE Filters NONE Steam 0 RUN: e9adfa8f-eeb0-44cb-9d7e-2f11cddbb953